fUST/lending_fUST_20241214
["ID","MTS","AMOUNT","RATE_DAILY","PERIOD"]
[345357219,1734181838325,-153.0,0.00028967,2]
[345357220,1734181838334,-376.34387689,0.00028982,2]
[345357221,1734181838343,-8067.7891675,0.00029,2]
[345357222,1734181838352,-303.16066212,0.00029,2]
[345357223,1734181838362,-303.16369506,0.00029,2]
[345357224,1734181838371,-537.38,0.00029039,7]
[345357225,1734181838380,-168.0,0.0002904,7]
[345357226,1734181838391,-500.0,0.0002904,7]
[345357227,1734181838404,-500.0,0.0002904,7]
[345357228,1734181838414,-587.43,0.0002904,5]
[345357229,1734181838423,-1038.14,0.0002904,7]
[345357230,1734181838434,-667.18,0.0002904,7]
[345357231,1734181838444,-1529.07,0.0002904,7]
[345357232,1734181838453,-5500.49,0.00029041,7]
[345357233,1734181838465,-600.0,0.00029059,2]
[345357234,1734181838478,-1724.756726,0.00029095,2]
[345357235,1734181838487,-452874.72906613,0.000291,2]
[345357236,1734181838497,-151.0,0.000291,7]
[345357237,1734181838506,-172.490731,0.000291,7]
[345357238,1734181838516,-172.490731,0.000291,7]
[345357239,1734181838525,-151.0,0.000291,7]
[345357240,1734181838534,-151.0,0.000291,7]
[345357241,1734181838543,-151.0,0.000291,7]
[345357242,1734181838552,-199.234279,0.000291,7]
[345357243,1734181838561,-199.234279,0.000291,7]
[345357244,1734181838570,-151.0,0.000291,7]
[345357245,1734181838580,-151.0,0.000291,7]
[345357246,1734181838589,-287.4189,0.000291,7]
[345357247,1734181838598,-287.4189,0.000291,7]
[345357248,1734181838607,-151.0,0.000291,7]
[345357249,1734181838616,-151.0,0.000291,7]
[345357250,1734181838626,-151.0,0.000291,7]
[345357251,1734181838635,-228.949434,0.000291,7]
[345357252,1734181838644,-228.949434,0.000291,7]
[345357253,1734181838658,-151.553441,0.000291,7]
[345357254,1734181838667,-151.0,0.000291,7]
[345357255,1734181838676,-418.002026,0.000291,7]
[345357256,1734181838685,-418.002026,0.000291,7]
[345357257,1734181838694,-151.0,0.000291,7]
[345357258,1734181838703,-151.0,0.000291,7]
[345357259,1734181838712,-151.0,0.000291,7]
[345357260,1734181838721,-151.0,0.000291,7]
[345357261,1734181838731,-360.931752,0.000291,7]
[345357262,1734181838740,-360.931752,0.000291,7]
[345357263,1734181838749,-151.0,0.000291,7]
[345357264,1734181838759,-151.0,0.000291,7]
[345357265,1734181838768,-151.0,0.000291,7]
[345357266,1734181838777,-1432.485176,0.000291,7]
[345357267,1734181838787,-1432.485176,0.000291,7]
[345357268,1734181838796,-151.0,0.000291,7]
[345357269,1734181838805,-383.882526,0.000291,7]
[345357270,1734181838814,-383.882526,0.000291,7]
[345357271,1734181838823,-386.38791,0.000291,7]
[345357272,1734181838832,-279.594832,0.000291,7]
[345357273,1734181838841,-386.38791,0.000291,7]
[345357274,1734181838851,-279.594832,0.000291,7]
[345357275,1734181838860,-520.435932,0.000291,7]
[345357276,1734181838869,-520.435932,0.000291,7]
[345357277,1734181838878,-334.402808,0.000291,7]
[345357278,1734181838887,-171.692544,0.000291,7]
[345357279,1734181838896,-334.402808,0.000291,7]
[345357280,1734181838910,-171.692544,0.000291,7]
[345357281,1734181838919,-152.151534,0.000291,7]
[345357282,1734181838928,-151.0,0.000291,7]
[345357283,1734181838937,-284.62844122,0.00029159,2]
[345357284,1734181838946,-376.34387689,0.00029176,2]
[345357285,1734181838955,-151.0,0.00029206,7]
[345357286,1734181838964,-16155.51071176,0.0002924,2]
[345357287,1734181838973,-303.16066212,0.0002929,2]
[345357288,1734181838983,-303.16369506,0.0002929,2]
[345357289,1734181838992,-537.38,0.00029313,7]
[345357290,1734181839001,-168.0,0.00029314,7]
[345357291,1734181839010,-500.0,0.00029314,7]
[345357292,1734181839019,-500.0,0.00029314,7]
[345357293,1734181839029,-587.43,0.00029314,5]
[345357294,1734181839039,-1038.14,0.00029314,7]
[345357295,1734181839048,-667.18,0.00029314,7]
[345357296,1734181839058,-1529.07,0.00029314,7]
[345357297,1734181839067,-151.79139515,0.00029315,7]
[345357298,1734181839077,-200.14,0.00029315,7]
[345357299,1734181839086,-200.14,0.00029315,7]
[345357300,1734181839095,-279.6186973,0.00029315,7]
[345357301,1734181839105,-255.72732822,0.00029315,7]
[345357302,1734181839115,-5500.49,0.00029315,7]
[345357303,1734181839208,-600.0,0.00029362,2]
[345357304,1734181839218,-500.0,0.00029369,9]
[345357305,1734181839228,-376.34387689,0.00029369,2]
[345357306,1734181839237,-152.84,0.000294,31]
[345357307,1734181839246,-152.84,0.000294,31]
[345357308,1734181839255,-152.84,0.000294,31]
[345357309,1734181839264,-152.84,0.000294,31]
[345357310,1734181839274,-152.84,0.000294,31]
[345357311,1734181839283,-152.84,0.000294,31]
[345357312,1734181839292,-152.84,0.000294,31]
[345357313,1734181839300,-152.84,0.000294,31]
[345357314,1734181839310,-152.84,0.000294,31]
[345357315,1734181839318,-152.84,0.000294,31]
[345357316,1734181839328,-152.84,0.000294,31]
[345357317,1734181839336,-152.84,0.000294,31]
[345357318,1734181839345,-152.84,0.000294,31]
[345357319,1734181839354,-152.84,0.000294,31]
[345357320,1734181839363,-152.84,0.000294,31]
[345357321,1734181839372,-152.84,0.000294,31]
[345357322,1734181839381,-152.84,0.000294,31]
[345357323,1734181839394,-152.84,0.000294,31]
[345357324,1734181839406,-152.84,0.000294,31]
[345357325,1734181839419,-152.84,0.000294,31]
[345357326,1734181839429,-151.0,0.00029472,7]
[345357327,1734181839438,-284.62844122,0.00029488,2]
[345357328,1734181839447,-2997.79738375,0.000295,2]
[345357329,1734181839456,-376.34387689,0.00029563,2]
[345357330,1734181839464,-303.16066212,0.0002958,2]
[345357331,1734181839473,-303.16369506,0.0002958,2]
[345357332,1734181839483,-537.38,0.00029587,7]
[345357333,1734181839493,-155.38212995,0.00029588,2]
[345357334,1734181839502,-168.0,0.00029588,7]
[345357335,1734181839511,-500.0,0.00029588,7]
[345357336,1734181839520,-500.0,0.00029588,7]
[345357337,1734181839529,-587.43,0.00029588,5]
[345357338,1734181839538,-1038.14,0.00029588,7]
[345357339,1734181839547,-667.18,0.00029588,7]
[345357340,1734181839556,-1529.07,0.00029588,7]
[345357341,1734181839565,-153.15526483,0.00029589,7]
[345357342,1734181839574,-257.37815775,0.00029589,7]
[345357343,1734181839583,-5500.49,0.00029589,7]
[345357344,1734181839592,-251.0,0.00029589,3]
[345357345,1734181839601,-1724.756726,0.00029595,2]
[345357346,1734181839610,-462.0,0.0002966,120]
[345357347,1734181839619,-610.38414383,0.00029665,2]
[345357348,1734181839628,-447.65,0.00029708,2]
[345357349,1734181839637,-3956.202579,0.0002972,2]
[345357350,1734181839647,-151.0,0.00029738,7]
[345357351,1734181839658,-376.34387689,0.00029757,2]
[345357352,1734181839667,-1000.0,0.000298,3]
[345357353,1734181839676,-284.62844122,0.00029816,2]
[345357355,1734181839685,-537.38,0.00029861,7]
[345357356,1734181839695,-168.0,0.00029862,7]
[345357357,1734181839704,-500.0,0.00029862,7]
[345357358,1734181839714,-500.0,0.00029862,7]
[345357359,1734181839723,-587.43,0.00029862,5]
[345357360,1734181839732,-1038.14,0.00029862,7]
[345357361,1734181839742,-667.18,0.00029862,7]
[345357362,1734181839751,-216.06921396,0.00029863,7]
[345357363,1734181839760,-5500.49,0.00029863,7]
[345357364,1734181839770,-303.16066212,0.0002987,2]
[345357365,1734181839779,-303.16369506,0.0002987,2]
[345357366,1734181839788,-376.34387689,0.00029951,2]
[345357367,1734181839797,-1000.0,0.00029986,2]
[345357368,1734181839807,-883102.52409362,0.0002999,2]
[345357369,1734181839817,-180.04575737,0.0002999,11]
[345357370,1734181839827,-1000.0,0.00029999,4]
[345357371,1734181839836,-1000.0,0.00029999,7]
[345357372,1734181839845,-1000.0,0.00029999,14]
[345357373,1734181839855,-500.0,0.0003,120]
[345357374,1734181839864,-151.0,0.0003,120]
[345357375,1734181839873,-151.0,0.0003,120]
[345357376,1734181839883,-2015.26692507,0.0003,2]
[345357377,1734181839892,-207.7345644,0.0003,10]
[345357378,1734181839904,-1000.04454543,0.0003,30]
[345357379,1734181839913,-10000.0,0.0003,7]
[345357380,1734181839922,-647.0963148,0.0003,7]
[345357381,1734181839931,-365.1,0.0003,120]
[345357382,1734181839941,-8312.0,0.0003,20]
[345357383,1734181839950,-4154.0,0.0003,20]
[345357384,1734181839959,-4154.0,0.0003,20]
[345357386,1734181839969,-4154.0,0.0003,20]
[345357387,1734181839978,-4154.0,0.0003,20]
[345357388,1734181839987,-173.248,0.0003,2]
[345357389,1734181839996,-157.501188,0.0003,7]
[345357390,1734181840006,-151.0,0.0003,7]
[345357391,1734181840015,-151.0,0.0003,7]
[345357392,1734181840024,-298.684816,0.0003,7]
[345357393,1734181840033,-248.0475,0.0003,2]
[345357394,1734181840043,-172.490731,0.0003,7]
[345357395,1734181840051,-172.490731,0.0003,7]
[345357396,1734181840060,-151.0,0.0003,7]
[345357397,1734181840069,-151.0,0.0003,7]
[345357398,1734181840078,-199.234279,0.0003,7]
[345357399,1734181840087,-199.234279,0.0003,7]
[345357400,1734181840097,-151.0,0.0003,7]
[345357401,1734181840106,-151.0,0.0003,7]
[345357402,1734181840115,-287.4189,0.0003,7]
[345357403,1734181840124,-287.4189,0.0003,7]
[345357404,1734181840134,-151.0,0.0003,7]
[345357405,1734181840142,-151.0,0.0003,7]
[345357406,1734181840154,-218.10301,0.0003,7]
[345357407,1734181840163,-228.949434,0.0003,7]
[345357408,1734181840172,-228.949434,0.0003,7]
[345357409,1734181840181,-286.542843,0.0003,7]
[345357410,1734181840190,-418.002026,0.0003,7]
[345357411,1734181840199,-418.002026,0.0003,7]
[345357412,1734181840208,-165.576274,0.0003,7]
[345357413,1734181840217,-151.0,0.0003,7]
[345357414,1734181840227,-151.0,0.0003,7]
[345357415,1734181840236,-160.222785,0.0003,2]
[345357417,1734181840245,-151.0,0.0003,7]
[345357418,1734181840254,-360.931752,0.0003,7]
[345357419,1734181840263,-360.931752,0.0003,7]
[345357420,1734181840272,-151.0,0.0003,7]
[345357421,1734181840282,-151.0,0.0003,7]
[345357422,1734181840291,-151.0,0.0003,7]
[345357423,1734181840300,-1432.485176,0.0003,7]
[345357424,1734181840309,-1432.485176,0.0003,7]
[345357425,1734181840319,-151.0,0.0003,7]
[345357426,1734181840327,-383.882526,0.0003,7]
[345357427,1734181840337,-269.0,0.0003,2]
[345357428,1734181840346,-383.882526,0.0003,7]
[345357429,1734181840355,-386.38791,0.0003,7]
[345357430,1734181840364,-279.594832,0.0003,7]
[345357431,1734181840373,-386.38791,0.0003,7]
[345357432,1734181840383,-279.594832,0.0003,7]
[345357433,1734181840396,-520.435932,0.0003,7]
[345357434,1734181840410,-520.435932,0.0003,7]
[345357435,1734181840418,-334.402808,0.0003,7]
[345357436,1734181840427,-171.692544,0.0003,7]
[345357437,1734181840438,-334.402808,0.0003,7]
[345357438,1734181840447,-171.692544,0.0003,7]
[345357439,1734181840455,-151.0,0.00030004,7]
[345357440,1734181840465,-282.47539963,0.00030018,2]
[345357441,1734181840473,-1821.32117284,0.0003002,2]
[345357442,1734181840482,-420.0,0.00030029,2]
[345357443,1734181840492,-160.0,0.00030048,3]
[345357444,1734181840501,-1000.0,0.00030079,2]
[345357445,1734181840510,-229.89,0.00030092,120]
[345357446,1734181840519,-1724.756726,0.00030095,2]
[345357447,1734181840528,-152.84,0.000301,31]
[345357448,1734181840538,-152.84,0.000301,31]
[345357449,1734181840547,-152.84,0.000301,31]
[345357450,1734181840556,-152.84,0.000301,31]
[345357451,1734181840565,-152.84,0.000301,31]
[345357452,1734181840574,-152.84,0.000301,31]
[345357453,1734181840583,-152.84,0.000301,31]
[345357454,1734181840593,-152.84,0.000301,31]
[345357455,1734181840602,-152.84,0.000301,31]
[345357456,1734181840611,-152.84,0.000301,31]
[345357457,1734181840620,-152.84,0.000301,31]
[345357458,1734181840630,-152.84,0.000301,31]
[345357459,1734181840639,-152.84,0.000301,31]
[345357460,1734181840647,-152.84,0.000301,31]
[345357461,1734181840660,-152.84,0.000301,31]
[345357462,1734181840669,-152.84,0.000301,31]
[345357463,1734181840678,-150.5,0.00030102,120]
[345357464,1734181840688,-150.5,0.00030112,120]
[345357465,1734181840697,-537.38,0.00030135,7]
[345357466,1734181840706,-5500.49,0.00030136,7]
[345357467,1734181840715,-168.0,0.00030136,7]
[345357468,1734181840724,-500.0,0.00030136,120]
[345357469,1734181840733,-500.0,0.00030136,120]
[345357470,1734181840742,-549.94009368,0.00030136,120]
[345357471,1734181840751,-1000.0,0.00030136,120]
[345357472,1734181840760,-220.72130875,0.00030136,7]
[345357473,1734181840770,-500.0,0.00030136,7]
[345357474,1734181840779,-587.43,0.00030136,5]
[345357475,1734181840788,-1038.14,0.00030136,7]
[345357476,1734181840797,-667.18,0.00030136,7]
[345357477,1734181840807,-284.62844122,0.00030145,2]
[345357478,1734181840816,-376.34387689,0.00030145,2]
[345357479,1734181840826,-303.16066212,0.0003016,2]
[345357480,1734181840835,-303.16369506,0.0003016,2]
[345357481,1734181840844,-2000.0,0.000302,2]
[345357482,1734181840854,-13283.83,0.000302,2]
[345357483,1734181840863,-199.234279,0.00030243,7]
[345357484,1734181840872,-199.234279,0.00030243,7]
[345357485,1734181840882,-199.234279,0.00030243,7]
[345357486,1734181840891,-199.234279,0.00030243,7]
[345357487,1734181840903,-199.234279,0.00030243,7]
[345357488,1734181840912,-199.234279,0.00030243,7]
[345357489,1734181840921,-199.234279,0.00030243,7]
[345357490,1734181840931,-199.234279,0.00030243,7]
[345357491,1734181840940,-199.234279,0.00030243,7]
[345357492,1734181840949,-199.234279,0.00030243,7]
[345357493,1734181840959,-199.234279,0.00030243,7]
[345357494,1734181840968,-199.234279,0.00030243,7]
[345357495,1734181840977,-199.234279,0.00030243,7]
[345357496,1734181840986,-199.234279,0.00030243,7]
[345357497,1734181840995,-199.234279,0.00030243,7]
[345357498,1734181841004,-199.234285,0.00030243,7]
[345357499,1734181841013,-151.0,0.00030243,7]
[345357500,1734181841022,-151.0,0.00030243,7]
[345357501,1734181841031,-151.0,0.00030243,7]
[345357502,1734181841040,-151.0,0.00030243,7]
[345357503,1734181841049,-151.0,0.00030243,7]
[345357504,1734181841058,-151.0,0.00030243,7]
[345357505,1734181841067,-151.0,0.00030243,7]
[345357506,1734181841076,-151.0,0.00030243,7]
[345357507,1734181841085,-151.0,0.00030243,7]
[345357508,1734181841094,-151.0,0.00030243,7]
[345357509,1734181841103,-151.0,0.00030243,7]
[345357510,1734181841112,-151.0,0.00030243,7]
[345357511,1734181841121,-151.0,0.00030243,7]
[345357512,1734181841130,-151.0,0.00030243,7]
[345357513,1734181841139,-151.0,0.00030243,7]
[345357514,1734181841149,-276.538976,0.00030243,7]
[345357515,1734181841160,-151.0,0.00030243,7]
[345357516,1734181841169,-151.0,0.00030243,7]
[345357517,1734181841178,-151.0,0.00030243,7]
[345357518,1734181841187,-151.0,0.00030243,7]
[345357519,1734181841197,-151.0,0.00030243,7]
[345357520,1734181841206,-151.0,0.00030243,7]
[345357521,1734181841216,-154.33505,0.00030243,7]
[345357522,1734181841225,-228.949434,0.00030243,7]
[345357523,1734181841234,-228.949434,0.00030243,7]
[345357524,1734181841243,-228.949434,0.00030243,7]
[345357525,1734181841252,-228.949434,0.00030243,7]
[345357526,1734181841262,-228.949434,0.00030243,7]
[345357527,1734181841271,-228.949434,0.00030243,7]
[345357528,1734181841279,-228.949434,0.00030243,7]
[345357529,1734181841288,-228.949434,0.00030243,7]
[345357530,1734181841298,-228.949434,0.00030243,7]
[345357531,1734181841307,-228.949434,0.00030243,7]
[345357532,1734181841316,-228.949434,0.00030243,7]
[345357533,1734181841325,-228.949434,0.00030243,7]
[345357534,1734181841334,-228.949434,0.00030243,7]
[345357535,1734181841343,-228.949434,0.00030243,7]
[345357536,1734181841352,-228.949434,0.00030243,7]
[345357537,1734181841361,-228.949431,0.00030243,7]
[345357538,1734181841370,-428.385134,0.00030243,7]
[345357539,1734181841379,-428.385134,0.00030243,7]
[345357540,1734181841388,-428.385134,0.00030243,7]
[345357541,1734181841400,-428.385134,0.00030243,7]
[345357542,1734181841411,-428.385134,0.00030243,7]
[345357543,1734181841420,-428.385134,0.00030243,7]
[345357544,1734181841429,-428.385134,0.00030243,7]
[345357545,1734181841438,-428.385142,0.00030243,7]
[345357546,1734181841447,-418.002026,0.00030243,7]
[345357547,1734181841456,-418.002026,0.00030243,7]
[345357548,1734181841464,-418.002026,0.00030243,7]
[345357549,1734181841473,-418.002026,0.00030243,7]
[345357550,1734181841483,-418.002026,0.00030243,7]
[345357551,1734181841492,-418.002026,0.00030243,7]
[345357552,1734181841584,-418.002026,0.00030243,7]
[345357553,1734181841593,-418.002026,0.00030243,7]
[345357554,1734181841603,-418.002026,0.00030243,7]
[345357555,1734181841612,-418.002026,0.00030243,7]
[345357556,1734181841621,-418.002026,0.00030243,7]
[345357557,1734181841630,-418.002026,0.00030243,7]
[345357558,1734181841639,-418.002026,0.00030243,7]
[345357559,1734181841649,-418.002026,0.00030243,7]
[345357560,1734181841660,-418.002026,0.00030243,7]
[345357561,1734181841669,-418.002025,0.00030243,7]
[345357562,1734181841679,-774317.21672302,0.00030245,10]
[345357563,1734181841743,-1529.07,0.00029862,7]
[345357564,1734181841752,-1529.07,0.00030136,7]
[345357565,1734181841761,-306541.8600006,0.00030245,10]
[345357566,1734181841809,-14043.29285345,0.00030245,10]
[345357650,1734181843646,-27390.97383419,0.00030245,10]
[345357653,1734181843660,-1600.11976994,0.00030245,10]
[345357926,1734181846347,-11613.30000005,0.00030245,10]
[345359793,1734182158698,248.840613,0.00013973,2]
[345359906,1734183036374,-397.99996,0.00023,2]
[345359907,1734183036386,-3200.43515977,0.00023,2]
[345359908,1734183036395,-300.0,0.00024999,2]
[345359909,1734183036404,-300.0,0.00024999,2]
[345359910,1734183036413,-445.56484021,0.00025,2]
[345359911,1734183036435,-20595.82473759,0.00025,2]
[345359912,1734183036447,-166.39194005,0.00025,2]
[345359913,1734183036457,-33910.65101525,0.00025,2]
[345359914,1734183036466,-204.51194856,0.00025,2]
[345359915,1734183036475,-348.64815395,0.00025,2]
[345359916,1734183036484,-10410.4302464,0.00025326,2]
[345359917,1734183036493,-531.42846797,0.00026,2]
[345359918,1734183036502,-512.65280437,0.00026,2]
[345359919,1734183036511,-11580.39769425,0.00026,2]
[345359920,1734183036521,-3638.57572835,0.00026,2]
[345359921,1734183036530,-46595.72262586,0.00027,2]
[345359922,1734183036540,-420.0,0.00027082,2]
[345359923,1734183036550,-9745.54070802,0.000272,2]
[345359924,1734183036560,-230.53491713,0.000273,2]
[345359925,1734183036569,-420.0,0.00027499,2]
[345359926,1734183036578,-1388.1325932,0.00027746,2]
[345359927,1734183036587,-183.346761,0.00027783,2]
[345359928,1734183036596,-1216.1,0.000279,2]
[345359929,1734183036606,-2636.9,0.00028,2]
[345359930,1734183036615,-163.215741,0.00028069,2]
[345359931,1734183036625,-396.18370213,0.00028499,2]
[345359932,1734183036635,-14555.27818598,0.000285,2]
[345359933,1734183036645,-33149.53202669,0.000285,2]
[345359934,1734183036657,-44630.4861743,0.000285,2]
[345359935,1734183036668,-12462.76032861,0.000285,2]
[345359985,1734183038823,-2379.59023,0.000285,2]
[345359988,1734183038835,-20260.0,0.000285,2]
[345359990,1734183038846,-153999.9999984,0.000285,2]
[345359992,1734183038858,-446.20833079,0.000285,2]
[345360022,1734183040562,-6449.999995,0.000285,2]
[345360023,1734183040574,-20176.0,0.000285,2]
[345360064,1734183043783,-264.29634472,0.000285,2]
[345360066,1734183043794,-32439.84626437,0.000285,2]
[345360074,1734183043903,-1030.0,0.000285,2]
[345360179,1734183046724,-10111.0,0.000285,2]
[345360181,1734183078424,5500.0,0.00014,2]
[345360182,1734183136828,199.646514,0.00013973,2]
[345360208,1734184140117,172.698539,0.00013973,2]
[345360231,1734184232852,-251.768045,0.00027054,2]
[345360233,1734184232862,-163.215741,0.00027137,2]
[345360235,1734184232871,-183.346761,0.00027228,2]
[345360237,1734184232880,-1094.49,0.00028,2]
[345360239,1734184232890,-250.0,0.00028,120]
[345360241,1734184232899,-595.129193,0.000281,2]
[345360260,1734184238705,-4137.34690208,0.000281,2]
[345360273,1734184238817,-10521.52361579,0.000281,2]
[345360275,1734184238826,-1098.73782044,0.0002835,2]
[345360277,1734184238835,-300.0,0.00028498,2]
[345360279,1734184238847,-300.0,0.00028498,2]
[345360281,1734184238858,-500.0,0.00028499,2]
[345360283,1734184238867,-534.11437632,0.00028499,2]
[345360285,1734184238877,-500.0,0.00028499,2]
[345360287,1734184238886,-500.0,0.00028499,2]
[345360289,1734184238896,-500.0,0.00028499,2]
[345360291,1734184238905,-500.0,0.00028499,2]
[345360293,1734184238914,-502.23366656,0.00028499,2]
[345360295,1734184238924,-590.08491557,0.00028499,2]
[345360297,1734184238933,-500.0,0.00028499,2]
[345360299,1734184238942,-500.0,0.00028499,2]
[345360301,1734184238951,-500.0,0.00028499,2]
[345360303,1734184238960,-500.0,0.00028499,2]
[345360305,1734184238969,-500.0,0.00028499,2]
[345360307,1734184238978,-502.17863035,0.00028499,2]
[345360309,1734184238992,-227.67202141,0.00028499,2]
[345360311,1734184239003,-634.29986817,0.00028499,2]
[345360313,1734184239012,-612.36029539,0.00028499,2]
[345360315,1734184239021,-500.0,0.00028499,2]
[345360317,1734184239030,-500.0,0.00028499,2]
[345360319,1734184239040,-500.0,0.00028499,2]
[345360321,1734184239049,-500.0,0.00028499,2]
[345360323,1734184239058,-500.0,0.00028499,2]
[345360325,1734184239067,-300.29182762,0.00028499,2]
[345360327,1734184239077,-500.0,0.00028499,2]
[345360328,1734184239085,-500.0,0.00028499,2]
[345360329,1734184239095,-168.0,0.00028499,7]
[345360330,1734184239104,-891.96,0.00028499,7]
[345360331,1734184239114,-500.0,0.00028499,7]
[345360332,1734184239123,-500.0,0.00028499,5]
[345360333,1734184239132,-605.58,0.00028499,7]
[345360334,1734184239141,-500.0,0.00028499,7]
[345360335,1734184239150,-500.0,0.00028499,7]
[345360336,1734184239159,-33483.07165453,0.000285,2]
[345360337,1734184239169,-293.54888169,0.000285,2]
[345360338,1734184239178,-157743.86393172,0.000285,2]
[345360386,1734184243797,-1462.30797729,0.000285,2]
[345360464,1734185258261,239.367997,0.00013973,2]
[345360465,1734185343413,1041.46537606,0.0002023,2]
[345360470,1734185352526,700.0152172,0.0002023,2]
[345360474,1734185429650,9437.0,0.0002401,29]
[345360475,1734185429674,19563.0,0.0002401,29]
[345360511,1734185431976,-239.367997,0.00020447,2]
[345360513,1734185431986,-166.0,0.00025,2]
[345360515,1734185431995,-165.4163078,0.00026354,2]
[345360517,1734185432005,-1287.7018843,0.00026377,2]
[345360519,1734185432014,-239.367997,0.00026921,2]
[345360521,1734185432023,-908.85056578,0.00027072,2]
[345360528,1734185432081,-159.59235432,0.00027072,2]
[345360531,1734185432091,-985.04,0.00028,2]
[345360533,1734185432100,-300.0,0.00028199,2]
[345360535,1734185432110,-300.0,0.00028199,2]
[345360538,1734185432118,-9998.80075772,0.000282,2]
[345360541,1734185432128,-4998.80075772,0.000282,2]
[345360543,1734185432137,-168.36642321,0.00028233,2]
[345360546,1734185432147,-9998.80075772,0.000283,2]
[345360549,1734185432156,-4998.80075772,0.000283,2]
[345360552,1734185432165,-8030.60851573,0.00028333,2]
[345360555,1734185432175,-160.22278501,0.00028384,2]
[345360558,1734185432184,-1118.57801863,0.00028392,2]
[345360561,1734185432194,-445.19224204,0.000284,2]
[345360562,1734185432203,-9998.80075772,0.000284,2]
[345360563,1734185432213,-9998.80075772,0.000284,2]
[345360564,1734185432221,-967.01630524,0.00028487,2]
[345360565,1734185432230,-500.0,0.00028496,7]
[345360566,1734185432239,-9732.03886923,0.00028497,21]
[345360567,1734185432249,-580.35,0.00028497,7]
[345360568,1734185432258,-500.0,0.00028497,7]
[345360569,1734185432267,-168.0,0.00028498,7]
[345360570,1734185432276,-500.0,0.00028498,7]
[345360571,1734185432285,-493.78378816,0.00028498,7]
[345360572,1734185432294,-500.0,0.00028498,5]
[345360573,1734185432306,-3421.14,0.00028498,7]
[345360574,1734185432315,-500.0,0.00028498,7]
[345360575,1734185432324,-500.0,0.00028499,2]
[345360576,1734185432333,-500.0,0.00028499,2]
[345360577,1734185432342,-500.0,0.00028499,2]
[345360590,1734185432472,-500.0,0.00028499,2]
[345360592,1734185432481,-500.0,0.00028499,2]
[345360594,1734185432490,-500.0,0.00028499,2]
[345360596,1734185432500,-164.46627323,0.00028499,2]
[345360598,1734185432509,-500.0,0.00028499,2]
[345360600,1734185432519,-226.13826706,0.00028499,2]
[345360602,1734185432528,-415.73278495,0.00028499,2]
[345360604,1734185432537,-500.0,0.00028499,2]
[345360606,1734185432547,-500.0,0.00028499,2]
[345360608,1734185432559,-500.0,0.00028499,2]
[345360610,1734185432569,-500.0,0.00028499,2]
[345360612,1734185432581,-500.0,0.00028499,2]
[345360614,1734185432590,-500.0,0.00028499,2]
[345360616,1734185432600,-500.0,0.00028499,2]
[345360618,1734185432609,-500.0,0.00028499,2]
[345360620,1734185432618,-500.0,0.00028499,2]
[345360622,1734185432627,-249.45790551,0.00028499,2]
[345360624,1734185432637,-515.0,0.00028499,2]
[345360626,1734185432646,-500.0,0.00028499,2]
[345360628,1734185432655,-316.46719034,0.00028499,2]
[345360630,1734185432664,-500.0,0.00028499,2]